Workbook

Sheet Mestaruussarja
B1: Harri Mattila | E1: 22.8.1956
B2: MESTARUUSSARJA | E2: Runkosarja | I2: Kärkilyönnit (KL), pesänvälit | P2: Ylempi loppusarja | W2: Alempi loppusarja | AD2: Arvo-ottelut | AH2: Mitalit
B3: Vuosi | C3: Sija | D3: Seura | E3: OTT | F3: KUN | G3: LÖI | H3: TOI | I3: KL | J3: 0 > 1 | K3: 1 > 2 | L3: 2 > 3 | M3: 3 > k | N3: KL-% | P3: OTT | Q3: KUN | R3: LÖI | S3: TOI | T3: KL | U3: KL-% | W3: OTT | X3: KUN | Y3: LÖI | Z3: TOI | AA3: KL | AB3: KL-% | AD3: IL | AE3: LL | AF3: Cup | AG3: K | AH3: H | AI3: P
B4: 1982 | C4: 4. | D4: HP | F4: ykkössarja
B5: 1983 | C5: 3. | D5: HP | F5: ykkössarja
B6: 1984 | C6: 11. | D6: HP | E6: 21 | F6: 1 | G6: 6 | H6: 15 | I6: 57 | J6: 28 | K6: 10 | L6: 12 | M6: 7 | N6: 41.0 % | W6: 5 | X6: 0 | Y6: 3 | Z6: 2 | AA6: 16 | AB6: 50.0 %
B7: 1985 | C7: 3. | D7: HP | F7: ykkössarja
B8: 1986 | C8: 10. | D8: HP | E8: 17 | F8: 2 | G8: 3 | H8: 11 | I8: 60 | J8: 28 | K8: 21 | L8: 6 | M8: 5 | N8: 52.2 % | W8: 6 | X8: 0 | Y8: 0 | Z8: 0 | AA8: 7 | AB8: 35.0 %
B9: 1987 | C9: 5. | D9: HP | F9: ykkössarja
B10: 1988 | C10: 8. | D10: HP 2 | F10: suomensarja
B11: 1989
B12: 1990
B13: 1991 | C13: 10. | D13: KI | F13: suomensarja
B14: 1992 | C14: 12. | D14: KI | F14: suomensarja
B15: Yhteensä | E15: 38 | F15: 3 | G15: 9 | H15: 26 | I15: 117 | J15: 56 | K15: 31 | L15: 18 | M15: 12 | N15: 46.1 % | P15: 0 | Q15: 0 | R15: 0 | S15: 0 | T15: 0 | U15: 0.0 % | W15: =PRODUCT(E21) -> 11 | X15: =PRODUCT(F21) -> 0 | Y15: =PRODUCT(G21) -> 3 | Z15: =PRODUCT(H21) -> 2 | AA15: =PRODUCT(I21) -> 23 | AB15: =PRODUCT(N21) -> 44.2 % | AD15: 0 | AE15: 0 | AF15: 0 | AG15: 0 | AH15: 0 | AI15: 0
B16: Pesispörssi | D16: 85.7
B18: URA SM-SARJASSA | E18: OTT | F18: KUN | G18: LÖI | H18: TOI | I18: KL | K18: ka/L | L18: ka/T | M18: ka/KL | N18: KL-% | P18: ENSIMMÄISET RUNKOSARJASSA
B19: Runkosarja | E19: 38 | F19: 3 | G19: 9 | H19: 26 | I19: 117 | K19: 0.32 | L19: 0.68 | M19: 3.08 | N19: 46.1 % | P19: Ottelu | R19: 06.05. 1984 Kiri - HP 7-2 | Y19: 1. ottelu | AA19: 27 v 8 kk 14 pv
B20: Ylempi loppusarja | P20: Lyöty | R20: 20.05. 1984 SMJ - HP 3-7 | Y20: 4. ottelu | AA20: 27 v 8 kk 28 pv
B21: Alempi loppusarja | E21: 11 | F21: 0 | G21: 3 | H21: 2 | I21: 23 | K21: 0.27 | L21: 0.18 | M21: 2.09 | N21: 44.2 % | P21: Tuotu | R21: 09.05. 1984 HP - KiU 4-9 | Y21: 2. ottelu | AA21: 27 v 8 kk 17 pv
B22: KAIKKI | E22: 49 | F22: 3 | G22: 12 | H22: 28 | I22: 140 | K22: 0.31 | L22: 0.57 | M22: 2.86 | N22: 45.8 % | P22: Kunnari | R22: 20.05. 1984 SMJ - HP 3-7 | Y22: 4. ottelu | AA22: 27 v 8 kk 28 pv
B24: Seurat | D24: HP = Haminan Palloilijat (1928)

Sheet MYP, MSS
B1: Harri Mattila | E1: 22.8.1956
B2: YKKÖSPESIS | E2: Runkosarja | L2: Runkosarja TOP-10 | Q2: Jatkosarjat | X2: SUOMENSARJA | AA2: Runkosarja | AH2: Runkosarja TOP-10 | AM2: Jatkosarjat
B3: Vuosi | C3: Sija | D3: Seura | E3: OTT | F3: KUN | G3: LÖI | H3: TOI | I3: KL | J3: KL-% | L3: LÖI | M3: TOI | N3: L+T | O3: KL | Q3: OTT | R3: KUN | S3: LÖI | T3: TOI | U3: KL | V3: KL-% | X3: Vuosi | Y3: Sija | Z3: Seura | AA3: OTT | AB3: KUN | AC3: LÖI | AD3: TOI | AE3: KL | AF3: KL-% | AH3: LÖI | AI3: TOI | AJ3: L+T | AK3: KL | AM3: OTT | AN3: KUN | AO3: LÖI | AP3: TOI | AQ3: KL | AR3: KL-%
B4: 1982 | C4: 4. | D4: HP | E4: 9 | F4: 0 | G4: 5 | H4: 16 | M4: 7. | Q4: 9 | R4: 1 | S4: 3 | T4: 10
B5: 1983 | C5: 3. | D5: HP | E5: 5 | F5: 0 | G5: 2 | H5: 2 | Q5: 10 | R5: 2 | S5: 5 | T5: 10
B7: 1985 | C7: 3. | D7: HP | E7: 20 | F7: 3 | G7: 12 | H7: 23
B9: 1987 | C9: 5. | D9: HP | E9: 22 | F9: 2 | G9: 9 | H9: 22
X10: 1988 | Y10: 8. | Z10: HP 2 | AA10: 4 | AB10: 0 | AC10: 1 | AD10: 2
X11: 1991 | Y11: 10. | Z11: KI | AA11: 22 | AB11: 0 | AC11: 21 | AD11: 17
X12: 1992 | Y12: 12. | Z12: KI | AA12: 19 | AB12: 0 | AC12: 15 | AD12: 8
B13: YHTEENSÄ | E13: =SUM(E4:E12) -> 56 | F13: =SUM(F4:F12) -> 5 | G13: =SUM(G4:G12) -> 28 | H13: =SUM(H4:H12) -> 63 | I13: =SUM(I4:I12) -> 0 | J13: 0.0 % | K13: =SUM(K4:K12) -> 0 | Q13: =SUM(Q4:Q12) -> 19 | R13: =SUM(R4:R12) -> 3 | S13: =SUM(S4:S12) -> 8 | T13: =SUM(T4:T12) -> 20 | U13: =SUM(U4:U12) -> 0 | V13: 0.0 % | W13: =SUM(W4:W12) -> 0 | X13: YHTEENSÄ | AA13: =SUM(AA4:AA12) -> 45 | AB13: =SUM(AB4:AB12) -> 0 | AC13: =SUM(AC4:AC12) -> 37 | AD13: =SUM(AD4:AD12) -> 27 | AE13: =SUM(AE4:AE12) -> 0 | AF13: 0.0 % | AG13: =SUM(AG4:AG12) -> 0 | AM13: =SUM(AM4:AM12) -> 0 | AN13: =SUM(AN4:AN12) -> 0 | AO13: =SUM(AO4:AO12) -> 0 | AP13: =SUM(AP4:AP12) -> 0 | AQ13: =SUM(AQ4:AQ12) -> 0 | AR13: 0.0 % | AS13: =SUM(AS4:AS12) -> 0
B15: KAIKKI OTTELUT | E15: OTT | F15: KUN | G15: LÖI | H15: TOI | I15: KL | J15: KL-% | L15: ka/L | M15: ka/T | N15: ka/l+t | O15: ka/kl | R15: Seurat | T15: HP = Haminan Palloilijat (1928)
B16: SUPERPESIS | E16: 49 | F16: 3 | G16: 12 | H16: 28 | I16: 140 | J16: 45.8 % | K16: =PRODUCT(I16/J16) -> 305.6768559 | L16: =PRODUCT((F16+G16)/E16) -> 0.31 | M16: =PRODUCT(H16/E16) -> 0.57 | N16: =PRODUCT((F16+G16+H16)/E16) -> 0.88 | O16: =PRODUCT(I16/E16) -> 2.86 | T16: KI = Kotkan Into (1900)
B17: YKKÖSPESIS | E17: =PRODUCT(E13+Q13) -> 75 | F17: =PRODUCT(F13+R13) -> 8 | G17: =PRODUCT(G13+S13) -> 36 | H17: =PRODUCT(H13+T13) -> 83 | I17: =PRODUCT(I13+U13) -> 0 | J17: 0.0 % | K17: 0 | L17: =PRODUCT((F17+G17)/E17) -> 0.59 | M17: =PRODUCT(H17/E17) -> 1.11 | N17: =PRODUCT((F17+G17+H17)/E17) -> 1.69 | O17: =PRODUCT(I17/E17) -> 0.00
B18: SUOMENSARJA | E18: =PRODUCT(AA13+AM13) -> 45 | F18: =PRODUCT(AB13+AN13) -> 0 | G18: =PRODUCT(AC13+AO13) -> 37 | H18: =PRODUCT(AD13+AP13) -> 27 | I18: =PRODUCT(AE13+AQ13) -> 0 | J18: 0.0 % | K18: 0 | L18: =PRODUCT((F18+G18)/E18) -> 0.82 | M18: =PRODUCT(H18/E18) -> 0.60 | N18: =PRODUCT((F18+G18+H18)/E18) -> 1.42 | O18: =PRODUCT(I18/E18) -> 0.00
B19: YHTEENSÄ | E19: =SUM(E16:E18) -> 169 | F19: =SUM(F16:F18) -> 11 | G19: 85 | H19: 138 | I19: 140 | J19: 0.0 % | K19: =SUM(K16:K18) -> 305.6768559 | L19: =PRODUCT((F19+G19)/E19) -> 0.57 | M19: =PRODUCT(H19/E19) -> 0.82 | N19: =PRODUCT((F19+G19+H19)/E19) -> 1.38 | O19: 2.86
